[Event "Titled Tuesday Blitz July 26 Late 2022"]
[White "Hjartarson, Johann"]
[Black "Ardila, Oscar Humberto"]
[WhiteFideId "2300044"]
[BlackFideId "4404742"]
[WhiteElo "2458"]
[BlackElo "1956"]
[Result "1-0"]
[Round "01"]
[TimeControl "180+1"]
[Date "2022.07.27"]
[WhiteClock "0:00:08"]
[BlackClock "0:00:05"]

1. e4 {[%clk 0:02:59]}  e5 {[%clk 0:02:57]} 2. Nf3 {[%clk 0:02:59]}  Nf6 {[%clk 0:02:55]} 3. Nc3 {[%clk 0:02:57]}  Nc6 {[%clk 0:02:50]} 4. Bb5 {[%clk 0:02:57]}  Bb4 {[%clk 0:02:45]} 5. O-O {[%clk 0:02:57]}  O-O {[%clk 0:02:40]} 6. d3 {[%clk 0:02:56]}  d6 {[%clk 0:02:22]} 7. Bg5 {[%clk 0:02:53]}  Bxc3 {[%clk 0:02:12]} 8. bxc3 {[%clk 0:02:53]}  Qe7 {[%clk 0:02:12]} 9. Re1 {[%clk 0:02:52]}  Nd8 {[%clk 0:02:01]} 10. d4 {[%clk 0:02:52]}  Ne6 {[%clk 0:01:48]} 11. Bc1 {[%clk 0:02:51]}  Rd8 {[%clk 0:01:46]} 12. d5 {[%clk 0:02:45]}  Nf8 {[%clk 0:01:42]} 13. Bf1 {[%clk 0:02:39]}  a5 {[%clk 0:01:40]} 14. g3 {[%clk 0:02:36]}  N8d7 {[%clk 0:01:39]} 15. c4 {[%clk 0:02:30]}  Nc5 {[%clk 0:01:39]} 16. Nd2 {[%clk 0:02:29]}  Bg4 {[%clk 0:01:37]} 17. f3 {[%clk 0:02:28]}  Bd7 {[%clk 0:01:37]} 18. Bg2 {[%clk 0:02:19]}  Rf8 {[%clk 0:01:30]} 19. Nf1 {[%clk 0:02:19]}  Ne8 {[%clk 0:01:28]} 20. Be3 {[%clk 0:02:08]}  b6 {[%clk 0:01:27]} 21. Nd2 {[%clk 0:02:03]}  f5 {[%clk 0:01:26]} 22. exf5 {[%clk 0:01:59]}  Bxf5 {[%clk 0:01:26]} 23. f4 {[%clk 0:01:57]}  Nd7 {[%clk 0:01:11]} 24. Nf3 {[%clk 0:01:52]}  Nef6 {[%clk 0:01:07]} 25. Nh4 {[%clk 0:01:41]}  Bg4 {[%clk 0:01:04]} 26. Qd3 {[%clk 0:01:38]}  e4 {[%clk 0:01:03]} 27. Qc3 {[%clk 0:01:34]}  Qf7 {[%clk 0:00:39]} 28. Bd4 {[%clk 0:01:34]}  Rae8 {[%clk 0:00:35]} 29. h3 {[%clk 0:01:33]}  Bf3 {[%clk 0:00:25]} 30. Nxf3 {[%clk 0:01:29]}  exf3 {[%clk 0:00:25]} 31. Bxf3 {[%clk 0:01:29]}  Qg6 {[%clk 0:00:24]} 32. Kh2 {[%clk 0:01:16]}  h5 {[%clk 0:00:24]} 33. Qd3 {[%clk 0:01:15]}  Qh6 {[%clk 0:00:18]} 34. Re6 {[%clk 0:01:10]}  Rxe6 {[%clk 0:00:15]} 35. dxe6 {[%clk 0:01:09]}  Nc5 {[%clk 0:00:15]} 36. Bxc5 {[%clk 0:01:06]}  bxc5 {[%clk 0:00:15]} 37. Re1 {[%clk 0:01:00]}  Re8 {[%clk 0:00:14]} 38. Bc6 {[%clk 0:00:58]}  Re7 {[%clk 0:00:15]} 39. Qf3 {[%clk 0:00:54]}  Qh7 {[%clk 0:00:14]} 40. f5 {[%clk 0:00:52]}  Qh6 {[%clk 0:00:14]} 41. Qf4 {[%clk 0:00:47]}  Qxf4 {[%clk 0:00:14]} 42. gxf4 {[%clk 0:00:47]}  Kh7 {[%clk 0:00:14]} 43. Kg3 {[%clk 0:00:41]}  g6 {[%clk 0:00:14]} 44. fxg6+ {[%clk 0:00:36]}  Kxg6 {[%clk 0:00:14]} 45. Kf3 {[%clk 0:00:27]}  Kf5 {[%clk 0:00:15]} 46. Bd5 {[%clk 0:00:20]}  c6 {[%clk 0:00:12]} 47. Bxc6 {[%clk 0:00:19]}  Rxe6 {[%clk 0:00:12]} 48. Rxe6 {[%clk 0:00:19]}  Kxe6 {[%clk 0:00:12]} 49. Be4 {[%clk 0:00:19]}  Kf7 {[%clk 0:00:11]} 50. Bf5 {[%clk 0:00:18]}  Ne8 {[%clk 0:00:09]} 51. Be4 {[%clk 0:00:16]}  Kf6 {[%clk 0:00:10]} 52. Kg3 {[%clk 0:00:15]}  Nc7 {[%clk 0:00:10]} 53. Bd5 {[%clk 0:00:13]}  Na6 {[%clk 0:00:10]} 54. c3 {[%clk 0:00:12]}  a4 {[%clk 0:00:10]} 55. Kh4 {[%clk 0:00:12]}  Kg6 {[%clk 0:00:10]} 56. Be4+ {[%clk 0:00:12]}  Kh6 {[%clk 0:00:09]} 57. f5 {[%clk 0:00:12]}  Nc7 {[%clk 0:00:10]} 58. f6 {[%clk 0:00:12]}  a3 {[%clk 0:00:07]} 59. Kg3 {[%clk 0:00:12]}  Ne6 {[%clk 0:00:07]} 60. f7 {[%clk 0:00:11]}  Kg7 {[%clk 0:00:07]} 61. Bd5 {[%clk 0:00:10]}  Nf8 {[%clk 0:00:07]} 62. Kf4 {[%clk 0:00:10]}  Kf6 {[%clk 0:00:07]} 63. Ke4 {[%clk 0:00:09]}  Ng6 {[%clk 0:00:07]} 64. Kd3 {[%clk 0:00:09]}  Ke7 {[%clk 0:00:07]} 65. Kc2 {[%clk 0:00:09]}  Ne5 {[%clk 0:00:07]} 66. Kb3 {[%clk 0:00:08]}  h4 {[%clk 0:00:07]} 67. Kxa3 {[%clk 0:00:08]}  Nd3 {[%clk 0:00:07]} 68. Kb3 {[%clk 0:00:08]}  Ne1 {[%clk 0:00:05]} 69. a4 {[%clk 0:00:08]}  Nd3 {[%clk 0:00:04]} 70. a5 {[%clk 0:00:08]}  Ne5 {[%clk 0:00:05]} 71. a6 {[%clk 0:00:08]} 1-0


[Site "https://www.chess.com"]

[Event "Titled Tuesday Blitz July 26 Late 2022"]
[White "Hoffmann, Asa"]
[Black "Domingo Nunez, Ruben"]
[WhiteFideId "2001470"]
[BlackFideId "22245570"]
[WhiteElo "2117"]
[BlackElo "2373"]
[Result "0-1"]
[Round "01"]
[TimeControl "180+1"]
[Date "2022.07.27"]
[WhiteClock "0:00:37"]
[BlackClock "0:00:21"]

1. d4 {[%clk 0:02:52]}  g6 {[%clk 0:02:58]} 2. e4 {[%clk 0:02:51]}  Bg7 {[%clk 0:02:59]} 3. Be3 {[%clk 0:02:50]}  c6 {[%clk 0:02:59]} 4. Qd2 {[%clk 0:02:48]}  d5 {[%clk 0:03:00]} 5. Nc3 {[%clk 0:02:47]}  dxe4 {[%clk 0:03:00]} 6. Nxe4 {[%clk 0:02:47]}  Nf6 {[%clk 0:03:01]} 7. Nxf6+ {[%clk 0:02:45]}  exf6 {[%clk 0:03:02]} 8. O-O-O {[%clk 0:02:41]}  O-O {[%clk 0:03:02]} 9. Bh6 {[%clk 0:02:41]}  Be6 {[%clk 0:02:57]} 10. h4 {[%clk 0:02:40]}  a5 {[%clk 0:02:46]} 11. Bxg7 {[%clk 0:02:29]}  Kxg7 {[%clk 0:02:47]} 12. h5 {[%clk 0:02:29]}  g5 {[%clk 0:02:47]} 13. f4 {[%clk 0:02:27]}  h6 {[%clk 0:02:41]} 14. Bd3 {[%clk 0:02:21]}  Qxd4 {[%clk 0:02:30]} 15. Nf3 {[%clk 0:02:15]}  Qxf4 {[%clk 0:02:15]} 16. Qxf4 {[%clk 0:02:14]}  gxf4 {[%clk 0:02:16]} 17. Rh4 {[%clk 0:02:12]}  Nd7 {[%clk 0:02:17]} 18. Rxf4 {[%clk 0:02:11]}  Ne5 {[%clk 0:02:18]} 19. Re1 {[%clk 0:02:00]}  Nxd3+ {[%clk 0:02:16]} 20. cxd3 {[%clk 0:02:00]}  Rad8 {[%clk 0:02:15]} 21. Nd4 {[%clk 0:01:57]}  Bc8 {[%clk 0:01:56]} 22. Re3 {[%clk 0:01:50]}  Rd5 {[%clk 0:01:55]} 23. Rg3+ {[%clk 0:01:49]}  Rg5 {[%clk 0:01:54]} 24. Rgf3 {[%clk 0:01:43]}  Rd8 {[%clk 0:01:48]} 25. g3 {[%clk 0:01:27]}  Rd6 {[%clk 0:01:39]} 26. Kc2 {[%clk 0:01:25]}  Bg4 {[%clk 0:01:39]} 27. Re3 {[%clk 0:01:22]}  Bd7 {[%clk 0:01:31]} 28. Kc3 {[%clk 0:01:09]}  Rxh5 {[%clk 0:01:22]} 29. Rh4 {[%clk 0:01:06]}  Rg5 {[%clk 0:01:19]} 30. a3 {[%clk 0:01:00]}  Rc5+ {[%clk 0:01:05]} 31. Kd2 {[%clk 0:00:59]}  Rcd5 {[%clk 0:01:05]} 32. Kc3 {[%clk 0:00:58]}  c5 {[%clk 0:01:04]} 33. Ne2 {[%clk 0:00:58]}  b5 {[%clk 0:00:59]} 34. Nf4 {[%clk 0:00:58]}  b4+ {[%clk 0:00:59]} 35. axb4 {[%clk 0:00:58]}  cxb4+ {[%clk 0:00:58]} 36. Kd2 {[%clk 0:00:55]}  Rg5 {[%clk 0:00:55]} 37. Nh5+ {[%clk 0:00:51]}  Kf8 {[%clk 0:00:52]} 38. Rf3 {[%clk 0:00:51]}  Ke7 {[%clk 0:00:33]} 39. Re3+ {[%clk 0:00:51]}  Re5 {[%clk 0:00:27]} 40. Nf4 {[%clk 0:00:49]}  Rxe3 {[%clk 0:00:23]} 41. Kxe3 {[%clk 0:00:49]}  f5 {[%clk 0:00:24]} 42. d4 {[%clk 0:00:48]}  a4 {[%clk 0:00:24]} 43. Nd3 {[%clk 0:00:47]}  a3 {[%clk 0:00:23]} 44. bxa3 {[%clk 0:00:47]}  bxa3 {[%clk 0:00:24]} 45. Rh1 {[%clk 0:00:46]}  Re6+ {[%clk 0:00:23]} 46. Kd2 {[%clk 0:00:46]}  Re4 {[%clk 0:00:23]} 47. Kc3 {[%clk 0:00:46]}  Re3 {[%clk 0:00:23]} 48. Ra1 {[%clk 0:00:44]}  Bb5 {[%clk 0:00:23]} 49. Kb4 {[%clk 0:00:43]}  Bxd3 {[%clk 0:00:20]} 50. Rxa3 {[%clk 0:00:43]}  Rxg3 {[%clk 0:00:21]} 51. Kc5 {[%clk 0:00:43]}  Rf3 {[%clk 0:00:20]} 52. d5 {[%clk 0:00:43]}  Be4 {[%clk 0:00:21]} 53. Ra7+ {[%clk 0:00:42]}  Kf6 {[%clk 0:00:21]} 54. d6 {[%clk 0:00:42]}  Rd3 {[%clk 0:00:22]} 55. d7 {[%clk 0:00:41]}  h5 {[%clk 0:00:20]} 56. Ra6+ {[%clk 0:00:40]}  Ke7 {[%clk 0:00:21]} 57. Ra7 {[%clk 0:00:40]}  Rxd7 {[%clk 0:00:20]} 58. Ra6 {[%clk 0:00:39]}  Rd5+ {[%clk 0:00:18]} 59. Kc4 {[%clk 0:00:38]}  Bd3+ {[%clk 0:00:19]} 60. Kxd5 {[%clk 0:00:37]}  Bxa6 {[%clk 0:00:19]} 61. Ke5 {[%clk 0:00:38]}  Bd3 {[%clk 0:00:20]} 62. Kf4 {[%clk 0:00:37]}  Kf6 {[%clk 0:00:21]} 0-1


[Site "https://www.chess.com"]

[Event "Titled Tuesday Blitz July 26 Late 2022"]
[White "Jacobson, Brandon"]
[Black "Manelyuk, Daniil"]
[WhiteFideId "30901561"]
[BlackFideId "44173920"]
[WhiteElo "2362"]
[BlackElo "2209"]
[Result "1-0"]
[Round "01"]
[TimeControl "180+1"]
[Date "2022.07.26"]
[WhiteClock "0:01:39"]
[BlackClock "0:00:12"]

1. Nf3 {[%clk 0:03:00]}  c5 {[%clk 0:02:35]} 2. e4 {[%clk 0:02:59]}  d6 {[%clk 0:02:33]} 3. d4 {[%clk 0:02:58]}  cxd4 {[%clk 0:02:33]} 4. Nxd4 {[%clk 0:02:59]}  Nf6 {[%clk 0:02:32]} 5. Nc3 {[%clk 0:03:00]}  a6 {[%clk 0:02:32]} 6. Be3 {[%clk 0:02:55]}  e5 {[%clk 0:02:32]} 7. Nf3 {[%clk 0:02:54]}  Be7 {[%clk 0:02:28]} 8. Bc4 {[%clk 0:02:54]}  Be6 {[%clk 0:02:20]} 9. Bb3 {[%clk 0:02:54]}  O-O {[%clk 0:02:19]} 10. O-O {[%clk 0:02:55]}  Nc6 {[%clk 0:02:15]} 11. Qe2 {[%clk 0:02:55]}  b5 {[%clk 0:02:15]} 12. Rfd1 {[%clk 0:02:53]}  Qc8 {[%clk 0:02:03]} 13. Bg5 {[%clk 0:02:52]}  Na5 {[%clk 0:01:57]} 14. Bxf6 {[%clk 0:02:48]}  Bxf6 {[%clk 0:01:52]} 15. Rxd6 {[%clk 0:02:36]}  Nc4 {[%clk 0:01:46]} 16. Bxc4 {[%clk 0:02:36]}  Bxc4 {[%clk 0:01:44]} 17. Qd2 {[%clk 0:02:26]}  Qc5 {[%clk 0:01:28]} 18. Rxf6 {[%clk 0:02:08]}  gxf6 {[%clk 0:01:27]} 19. Qh6 {[%clk 0:02:09]}  Rad8 {[%clk 0:00:50]} 20. Nh4 {[%clk 0:02:05]}  Rfe8 {[%clk 0:00:45]} 21. Nf5 {[%clk 0:02:04]}  Qf8 {[%clk 0:00:41]} 22. Qxf6 {[%clk 0:02:04]}  Re6 {[%clk 0:00:41]} 23. Nh6+ {[%clk 0:02:00]}  Qxh6 {[%clk 0:00:40]} 24. Qxd8+ {[%clk 0:02:00]}  Kg7 {[%clk 0:00:40]} 25. Rd1 {[%clk 0:01:56]}  Rf6 {[%clk 0:00:38]} 26. Qd2 {[%clk 0:01:55]}  Qh4 {[%clk 0:00:36]} 27. Nd5 {[%clk 0:01:53]}  Bxd5 {[%clk 0:00:34]} 28. exd5 {[%clk 0:01:54]}  Rd6 {[%clk 0:00:33]} 29. Qc3 {[%clk 0:01:49]}  Qe4 {[%clk 0:00:30]} 30. Qc5 {[%clk 0:01:46]}  Qe2 {[%clk 0:00:25]} 31. Rf1 {[%clk 0:01:46]}  Rg6 {[%clk 0:00:23]} 32. Qe3 {[%clk 0:01:45]}  Qxc2 {[%clk 0:00:19]} 33. Qxe5+ {[%clk 0:01:46]}  Rf6 {[%clk 0:00:19]} 34. h3 {[%clk 0:01:42]}  Qd2 {[%clk 0:00:18]} 35. Kh2 {[%clk 0:01:41]}  Kg6 {[%clk 0:00:16]} 36. Qe4+ {[%clk 0:01:38]}  Kg7 {[%clk 0:00:14]} 37. Qe5 {[%clk 0:01:38]}  h6 {[%clk 0:00:12]} 38. f4 {[%clk 0:01:38]}  Kg6 {[%clk 0:00:12]} 39. Rf3 {[%clk 0:01:39]} 1-0


[Site "https://www.chess.com"]

[Event "Titled Tuesday Blitz July 26 Late 2022"]
[White "Karacsonyi, Gellert"]
[Black "Fiedorek, Michal"]
[WhiteFideId "764620"]
[BlackFideId "1199528"]
[WhiteElo "2187"]
[BlackElo "1833"]
[Result "0-1"]
[Round "01"]
[TimeControl "180+1"]
[Date "2022.07.26"]
[WhiteClock "0:00:04"]
[BlackClock "0:01:08"]

1. e4 {[%clk 0:03:00]}  c5 {[%clk 0:02:50]} 2. Nf3 {[%clk 0:03:00]}  d6 {[%clk 0:02:51]} 3. d4 {[%clk 0:03:01]}  cxd4 {[%clk 0:02:52]} 4. Nxd4 {[%clk 0:03:01]}  Nf6 {[%clk 0:02:53]} 5. Nc3 {[%clk 0:03:02]}  Nc6 {[%clk 0:02:53]} 6. f3 {[%clk 0:03:00]}  e5 {[%clk 0:02:53]} 7. Nb3 {[%clk 0:03:01]}  Be7 {[%clk 0:02:53]} 8. Be3 {[%clk 0:02:58]}  O-O {[%clk 0:02:53]} 9. Qd2 {[%clk 0:02:58]}  a5 {[%clk 0:02:54]} 10. Bb5 {[%clk 0:02:58]}  Na7 {[%clk 0:02:54]} 11. Bxa7 {[%clk 0:02:58]}  Rxa7 {[%clk 0:02:54]} 12. Qf2 {[%clk 0:02:56]}  Ra8 {[%clk 0:02:51]} 13. O-O-O {[%clk 0:02:56]}  Be6 {[%clk 0:02:46]} 14. Kb1 {[%clk 0:02:52]}  Qb8 {[%clk 0:02:43]} 15. a4 {[%clk 0:02:50]}  Rd8 {[%clk 0:02:34]} 16. g4 {[%clk 0:02:49]}  Ne8 {[%clk 0:02:29]} 17. Bxe8 {[%clk 0:02:44]}  Rxe8 {[%clk 0:02:29]} 18. Nd5 {[%clk 0:02:44]}  b5 {[%clk 0:02:26]} 19. axb5 {[%clk 0:02:19]}  a4 {[%clk 0:02:25]} 20. Nc1 {[%clk 0:02:19]}  Qxb5 {[%clk 0:02:22]} 21. Nc7 {[%clk 0:01:50]}  Qb7 {[%clk 0:02:20]} 22. Nxe8 {[%clk 0:01:47]}  Rxe8 {[%clk 0:02:11]} 23. Qe3 {[%clk 0:01:45]}  Rb8 {[%clk 0:02:05]} 24. Qc3 {[%clk 0:01:38]}  d5 {[%clk 0:02:06]} 25. exd5 {[%clk 0:01:29]}  Bxd5 {[%clk 0:02:04]} 26. Rd3 {[%clk 0:00:51]}  e4 {[%clk 0:01:58]} 27. Rxd5 {[%clk 0:00:41]}  Qxd5 {[%clk 0:01:57]} 28. fxe4 {[%clk 0:00:40]}  Qxe4 {[%clk 0:01:57]} 29. Re1 {[%clk 0:00:38]}  Qb7 {[%clk 0:01:57]} 30. Nd3 {[%clk 0:00:37]}  Bf6 {[%clk 0:01:55]} 31. Qb4 {[%clk 0:00:26]}  Qa7 {[%clk 0:01:48]} 32. Qb5 {[%clk 0:00:23]}  Qa8 {[%clk 0:01:27]} 33. Qd7 {[%clk 0:00:11]}  a3 {[%clk 0:01:25]} 34. g5 {[%clk 0:00:11]}  Bxb2 {[%clk 0:01:22]} 35. Ka2 {[%clk 0:00:09]}  Bc3 {[%clk 0:01:17]} 36. Re7 {[%clk 0:00:06]}  Rb2+ {[%clk 0:01:16]} 37. Ka1 {[%clk 0:00:04]}  Rb7+ {[%clk 0:01:08]} 0-1


[Site "https://www.chess.com"]

[Event "Titled Tuesday Blitz July 26 Late 2022"]
[White "Leiva, Gianmarco"]
[Black "Jorquera, Marcelo"]
[WhiteFideId "3804399"]
[BlackFideId "3401197"]
[WhiteElo "2323"]
[BlackElo "2136"]
[Result "1-0"]
[Round "01"]
[TimeControl "180+1"]
[Date "2022.07.27"]
[WhiteClock "0:00:31"]
[BlackClock "0:00:02"]

1. e4 {[%clk 0:03:00]}  d5 {[%clk 0:02:28]} 2. exd5 {[%clk 0:03:00]}  Qxd5 {[%clk 0:02:28]} 3. Nc3 {[%clk 0:02:58]}  Qa5 {[%clk 0:02:28]} 4. Bc4 {[%clk 0:02:55]}  Nf6 {[%clk 0:02:27]} 5. d3 {[%clk 0:02:56]}  a6 {[%clk 0:02:21]} 6. Bd2 {[%clk 0:02:55]}  Qf5 {[%clk 0:02:17]} 7. Qe2 {[%clk 0:02:54]}  b5 {[%clk 0:02:12]} 8. Bb3 {[%clk 0:02:53]}  Bb7 {[%clk 0:02:04]} 9. f3 {[%clk 0:02:53]}  Nc6 {[%clk 0:02:03]} 10. Qe3 {[%clk 0:02:37]}  e6 {[%clk 0:01:52]} 11. Nge2 {[%clk 0:02:33]}  O-O-O {[%clk 0:01:44]} 12. a4 {[%clk 0:02:28]}  Bc5 {[%clk 0:01:42]} 13. Qg5 {[%clk 0:02:27]}  Qxg5 {[%clk 0:01:27]} 14. Bxg5 {[%clk 0:02:27]}  b4 {[%clk 0:01:24]} 15. Ne4 {[%clk 0:02:20]}  Be7 {[%clk 0:01:24]} 16. a5 {[%clk 0:02:07]}  Nxe4 {[%clk 0:00:56]} 17. Bxe7 {[%clk 0:02:06]}  Nxe7 {[%clk 0:00:56]} 18. fxe4 {[%clk 0:02:07]}  Nc6 {[%clk 0:00:37]} 19. Rf1 {[%clk 0:02:03]}  Rhf8 {[%clk 0:00:34]} 20. Kd2 {[%clk 0:02:04]}  Kd7 {[%clk 0:00:27]} 21. Ke3 {[%clk 0:02:03]}  Ke7 {[%clk 0:00:25]} 22. d4 {[%clk 0:01:57]}  f6 {[%clk 0:00:19]} 23. c3 {[%clk 0:01:56]}  bxc3 {[%clk 0:00:14]} 24. bxc3 {[%clk 0:01:57]}  Rb8 {[%clk 0:00:14]} 25. Bc4 {[%clk 0:01:53]}  Bc8 {[%clk 0:00:06]} 26. Nf4 {[%clk 0:01:44]}  Rb2 {[%clk 0:00:05]} 27. Rf2 {[%clk 0:01:44]}  Rxf2 {[%clk 0:00:04]} 28. Kxf2 {[%clk 0:01:45]}  e5 {[%clk 0:00:02]} 29. Nd5+ {[%clk 0:01:45]}  Kd6 {[%clk 0:00:03]} 30. Ke3 {[%clk 0:01:40]}  f5 {[%clk 0:00:01]} 31. Bd3 {[%clk 0:00:58]}  f4+ {[%clk 0:00:01]} 32. Kd2 {[%clk 0:00:57]}  exd4 {[%clk 0:00:01]} 33. cxd4 {[%clk 0:00:52]}  Nxd4 {[%clk 0:00:02]} 34. Kc3 {[%clk 0:00:52]}  Nc6 {[%clk 0:00:02]} 35. h4 {[%clk 0:00:38]}  h6 {[%clk 0:00:01]} 36. h5 {[%clk 0:00:37]}  Ne5 {[%clk 0:00:02]} 37. Be2 {[%clk 0:00:35]}  g5 {[%clk 0:00:02]} 38. hxg6 {[%clk 0:00:35]}  Nxg6 {[%clk 0:00:03]} 39. Rh1 {[%clk 0:00:35]}  Rh8 {[%clk 0:00:02]} 40. Nb4 {[%clk 0:00:33]}  c5 {[%clk 0:00:02]} 41. Nxa6 {[%clk 0:00:31]}  Bxa6 {[%clk 0:00:02]} 42. Bxa6 {[%clk 0:00:31]}  Ke5 {[%clk 0:00:02]} 43. Bb7 {[%clk 0:00:31]} 1-0


[Site "https://www.chess.com"]

[Event "Titled Tuesday Blitz July 26 Late 2022"]
[White "Matinian, Nikita"]
[Black "Martinez, Shawn"]
[WhiteFideId "24129100"]
[BlackFideId "2039770"]
[WhiteElo "2422"]
[BlackElo "2174"]
[Result "1-0"]
[Round "01"]
[TimeControl "180+1"]
[Date "2022.07.27"]
[WhiteClock "0:00:35"]
[BlackClock "0:00:02"]

1. e4 {[%clk 0:03:00]}  c5 {[%clk 0:02:59]} 2. Nf3 {[%clk 0:02:59]}  e6 {[%clk 0:02:59]} 3. d4 {[%clk 0:02:59]}  cxd4 {[%clk 0:02:59]} 4. Nxd4 {[%clk 0:03:00]}  a6 {[%clk 0:03:00]} 5. Nc3 {[%clk 0:03:01]}  Bb4 {[%clk 0:03:00]} 6. Qg4 {[%clk 0:02:57]}  Nf6 {[%clk 0:02:55]} 7. Qxg7 {[%clk 0:02:55]}  Rg8 {[%clk 0:02:56]} 8. Qh6 {[%clk 0:02:55]}  Rg6 {[%clk 0:02:50]} 9. Qe3 {[%clk 0:02:49]}  d5 {[%clk 0:02:41]} 10. Bd2 {[%clk 0:02:47]}  e5 {[%clk 0:02:34]} 11. exd5 {[%clk 0:02:43]}  Nxd5 {[%clk 0:02:31]} 12. Nxd5 {[%clk 0:02:42]}  Bxd2+ {[%clk 0:02:28]} 13. Qxd2 {[%clk 0:02:39]}  Qxd5 {[%clk 0:02:22]} 14. Nb3 {[%clk 0:02:36]}  Qe4+ {[%clk 0:01:56]} 15. Qe2 {[%clk 0:02:33]}  Bf5 {[%clk 0:01:52]} 16. c3 {[%clk 0:01:34]}  Nd7 {[%clk 0:01:30]} 17. Qxe4 {[%clk 0:01:33]}  Bxe4 {[%clk 0:01:30]} 18. f3 {[%clk 0:01:34]}  Bc6 {[%clk 0:01:28]} 19. Kf2 {[%clk 0:01:31]}  f5 {[%clk 0:01:25]} 20. Bd3 {[%clk 0:01:30]}  e4 {[%clk 0:01:23]} 21. Rae1 {[%clk 0:01:27]}  Re6 {[%clk 0:01:20]} 22. Nd4 {[%clk 0:01:25]}  Rd6 {[%clk 0:01:15]} 23. fxe4 {[%clk 0:01:23]}  O-O-O {[%clk 0:00:57]} 24. exf5 {[%clk 0:01:20]}  Nc5 {[%clk 0:00:55]} 25. Bc2 {[%clk 0:01:17]}  Rg8 {[%clk 0:00:51]} 26. Rhg1 {[%clk 0:01:12]}  h5 {[%clk 0:00:39]} 27. Re5 {[%clk 0:01:08]}  Nd7 {[%clk 0:00:36]} 28. Re6 {[%clk 0:01:08]}  Kc7 {[%clk 0:00:32]} 29. Rxd6 {[%clk 0:01:07]}  Kxd6 {[%clk 0:00:33]} 30. g3 {[%clk 0:01:08]}  Ne5 {[%clk 0:00:30]} 31. Rd1 {[%clk 0:01:06]}  Ng4+ {[%clk 0:00:29]} 32. Ke2 {[%clk 0:01:00]}  Bg2 {[%clk 0:00:20]} 33. Bb3 {[%clk 0:00:48]}  Re8+ {[%clk 0:00:19]} 34. Be6 {[%clk 0:00:47]}  Ke5 {[%clk 0:00:14]} 35. h4 {[%clk 0:00:44]}  Ke4 {[%clk 0:00:12]} 36. Kd2 {[%clk 0:00:44]}  Ke5 {[%clk 0:00:04]} 37. Re1+ {[%clk 0:00:44]}  Kf6 {[%clk 0:00:04]} 38. a4 {[%clk 0:00:43]}  b5 {[%clk 0:00:03]} 39. axb5 {[%clk 0:00:43]}  axb5 {[%clk 0:00:04]} 40. Nxb5 {[%clk 0:00:43]}  Rb8 {[%clk 0:00:05]} 41. c4 {[%clk 0:00:42]}  Rd8+ {[%clk 0:00:05]} 42. Kc3 {[%clk 0:00:41]}  Nf2 {[%clk 0:00:05]} 43. Re2 {[%clk 0:00:38]}  Ne4+ {[%clk 0:00:05]} 44. Kb4 {[%clk 0:00:38]}  Bf3 {[%clk 0:00:04]} 45. Re3 {[%clk 0:00:38]}  Bh1 {[%clk 0:00:04]} 46. Bd5 {[%clk 0:00:38]}  Re8 {[%clk 0:00:03]} 47. Bxe4 {[%clk 0:00:37]}  Bxe4 {[%clk 0:00:03]} 48. Nd6 {[%clk 0:00:34]}  Rb8+ {[%clk 0:00:03]} 49. Kc3 {[%clk 0:00:34]}  Bg2 {[%clk 0:00:02]} 50. Re6+ {[%clk 0:00:34]}  Kg7 {[%clk 0:00:01]} 51. f6+ {[%clk 0:00:34]}  Kg6 {[%clk 0:00:01]} 52. f7+ {[%clk 0:00:34]}  Kg7 {[%clk 0:00:02]} 53. Re8 {[%clk 0:00:35]} 1-0


[Site "https://www.chess.com"]

[Event "Titled Tuesday Blitz July 26 Late 2022"]
[White "Milosevic, Milos"]
[Black "Raja Harshit"]
[WhiteFideId "964875"]
[BlackFideId "5089000"]
[WhiteElo "2293"]
[BlackElo "2338"]
[Result "0-1"]
[Round "01"]
[TimeControl "180+1"]
[Date "2022.07.26"]
[WhiteClock "0:00:39"]
[BlackClock "0:01:25"]

1. e4 {[%clk 0:02:57]}  c5 {[%clk 0:03:00]} 2. Nc3 {[%clk 0:02:57]}  d6 {[%clk 0:03:00]} 3. f4 {[%clk 0:02:56]}  g6 {[%clk 0:02:59]} 4. Nf3 {[%clk 0:02:57]}  Bg7 {[%clk 0:02:59]} 5. Bb5+ {[%clk 0:02:57]}  Bd7 {[%clk 0:02:55]} 6. a4 {[%clk 0:02:57]}  Nc6 {[%clk 0:02:53]} 7. O-O {[%clk 0:02:56]}  Nd4 {[%clk 0:02:52]} 8. Bc4 {[%clk 0:02:56]}  Nf6 {[%clk 0:02:49]} 9. f5 {[%clk 0:02:50]}  gxf5 {[%clk 0:02:47]} 10. d3 {[%clk 0:02:32]}  Bc6 {[%clk 0:02:34]} 11. Ng5 {[%clk 0:02:14]}  Rf8 {[%clk 0:02:34]} 12. exf5 {[%clk 0:02:04]}  Qd7 {[%clk 0:02:21]} 13. Nce4 {[%clk 0:01:55]}  d5 {[%clk 0:01:58]} 14. Nxf6+ {[%clk 0:01:51]}  exf6 {[%clk 0:01:55]} 15. Nxh7 {[%clk 0:01:43]}  dxc4 {[%clk 0:01:53]} 16. Qg4 {[%clk 0:01:33]}  O-O-O {[%clk 0:01:49]} 17. Nxf8 {[%clk 0:01:17]}  Bxf8 {[%clk 0:01:50]} 18. dxc4 {[%clk 0:01:16]}  Nxc2 {[%clk 0:01:49]} 19. Rb1 {[%clk 0:01:11]}  Qd4+ {[%clk 0:01:49]} 20. Qxd4 {[%clk 0:01:12]}  cxd4 {[%clk 0:01:50]} 21. Bd2 {[%clk 0:01:10]}  Ne3 {[%clk 0:01:32]} 22. Rf2 {[%clk 0:01:06]}  Nxc4 {[%clk 0:01:30]} 23. b4 {[%clk 0:00:58]}  Bxa4 {[%clk 0:01:26]} 24. b5 {[%clk 0:00:49]}  Bc2 {[%clk 0:01:24]} 25. Ra1 {[%clk 0:00:49]}  d3 {[%clk 0:01:24]} 26. Rxa7 {[%clk 0:00:38]}  Bc5 {[%clk 0:01:24]} 27. Ra8+ {[%clk 0:00:38]}  Kd7 {[%clk 0:01:24]} 28. Rxd8+ {[%clk 0:00:39]}  Kxd8 {[%clk 0:01:25]} 0-1


[Site "https://www.chess.com"]